[Event "*** SCC Grand Prix: Titled Tuesday Blitz"]
[Site "Chess.com"]
[Date "2020.06.23"]
[Round "1"]
[White "Slovak_fighter2000"]
[Black "SantoBlue"]
[Result "0-1"]
[WhiteElo "2400"]
[BlackElo "2784"]
[TimeControl "180+1"]
[EndTime "10:06:35 PDT"]
[Termination "SantoBlue won by resignation"]

1. d4 {[%clk 0:03:00.8]} 1... Nf6 {[%clk 0:02:57.2]} 2. Nf3 {[%clk 0:02:59.3]}
2... d5 {[%clk 0:02:56.9]} 3. Bf4 {[%clk 0:02:58.9]} 3... c6 {[%clk 0:02:53.3]}
4. e3 {[%clk 0:02:59]} 4... Bg4 {[%clk 0:02:52.4]} 5. c4 {[%clk 0:02:57.7]} 5...
e6 {[%clk 0:02:52.2]} 6. Nc3 {[%clk 0:02:57.5]} 6... Nbd7 {[%clk 0:02:51.6]} 7.
h3 {[%clk 0:02:54.2]} 7... Bxf3 {[%clk 0:02:50.7]} 8. Qxf3 {[%clk 0:02:55.1]}
8... g6 {[%clk 0:02:50.7]} 9. Bd3 {[%clk 0:02:53.7]} 9... Bg7 {[%clk 0:02:50.9]}
10. O-O {[%clk 0:02:52.8]} 10... O-O {[%clk 0:02:51.1]} 11. Rfd1 {[%clk
0:02:49]} 11... dxc4 {[%clk 0:02:33.3]} 12. Bxc4 {[%clk 0:02:09.8]} 12... Nd5
{[%clk 0:02:34.2]} 13. Nxd5 {[%clk 0:02:06.6]} 13... exd5 {[%clk 0:02:29.9]} 14.
Bd3 {[%clk 0:02:04.3]} 14... Re8 {[%clk 0:02:27.5]} 15. Rab1 {[%clk 0:02:02.8]}
15... a5 {[%clk 0:02:25.4]} 16. b3 {[%clk 0:01:57.1]} 16... Nf8 {[%clk
0:02:22.8]} 17. a3 {[%clk 0:01:56.5]} 17... Ne6 {[%clk 0:02:23]} 18. b4 {[%clk
0:01:56.8]} 18... axb4 {[%clk 0:02:21.9]} 19. axb4 {[%clk 0:01:57.7]} 19... Qf6
{[%clk 0:02:18.8]} 20. Bg3 {[%clk 0:01:53.3]} 20... Qxf3 {[%clk 0:02:15.3]} 21.
gxf3 {[%clk 0:01:54.2]} 21... f5 {[%clk 0:02:04.6]} 22. Be5 {[%clk 0:01:42.4]}
22... Bxe5 {[%clk 0:01:54.4]} 23. dxe5 {[%clk 0:01:43.3]} 23... f4 {[%clk
0:01:55.3]} 24. Bf1 {[%clk 0:01:33]} 24... Ra3 {[%clk 0:01:46.3]} 25. Re1 {[%clk
0:01:02.3]} 25... Ng5 {[%clk 0:01:35.4]} 26. Bg2 {[%clk 0:00:53.4]} 26... Rxe5
{[%clk 0:01:31.1]} 27. exf4 {[%clk 0:00:53.5]} 27... Nxf3+ {[%clk 0:01:27.6]}
28. Bxf3 {[%clk 0:00:51.8]} 28... Rxe1+ {[%clk 0:01:28.5]} 29. Rxe1 {[%clk
0:00:51.9]} 29... Rxf3 {[%clk 0:01:29.4]} 30. Re7 {[%clk 0:00:51.9]} 30... b5
{[%clk 0:01:19.4]} 31. Rc7 {[%clk 0:00:49.8]} 31... Rxf4 {[%clk 0:01:18.7]} 32.
Rxc6 {[%clk 0:00:49.4]} 32... Rxb4 {[%clk 0:01:19.6]} 33. Rd6 {[%clk 0:00:43.3]}
33... Rd4 {[%clk 0:01:18.8]} 34. Rb6 {[%clk 0:00:42.5]} 34... b4 {[%clk
0:01:18.8]} 35. f3 {[%clk 0:00:42.3]} 35... Kg7 {[%clk 0:01:18.3]} 36. Kf2
{[%clk 0:00:42.4]} 36... Rh4 {[%clk 0:01:18.1]} 37. Kg3 {[%clk 0:00:42]} 37...
g5 {[%clk 0:01:17.8]} 38. Kg2 {[%clk 0:00:39.2]} 38... h6 {[%clk 0:01:16.9]} 39.
Kg3 {[%clk 0:00:38.9]} 39... Rc4 {[%clk 0:01:16.6]} 40. Kf2 {[%clk 0:00:32.7]}
40... Rc2+ {[%clk 0:01:15.8]} 41. Ke3 {[%clk 0:00:29.9]} 41... Rc3+ {[%clk
0:01:15.1]} 42. Kf2 {[%clk 0:00:29]} 42... b3 {[%clk 0:01:15.5]} 43. Kg3 {[%clk
0:00:29.5]} 43... d4 {[%clk 0:01:15.5]} 44. Kf2 {[%clk 0:00:24.6]} 44... Rc2+
{[%clk 0:01:15]} 0-1

[Event "*** SCC Grand Prix: Titled Tuesday Blitz"]
[Site "Chess.com"]
[Date "2020.06.23"]
[Round "1"]
[White "kingmonkey2006"]
[Black "mjray79"]
[Result "1-0"]
[WhiteElo "2576"]
[BlackElo "2249"]
[TimeControl "180+1"]
[EndTime "10:06:37 PDT"]
[Termination "kingmonkey2006 won by checkmate"]

1. e4 {[%clk 0:02:59.3]} 1... e5 {[%clk 0:03:00]} 2. Nf3 {[%clk 0:02:58.5]} 2...
Nc6 {[%clk 0:03:00.4]} 3. Bb5 {[%clk 0:02:58.9]} 3... a6 {[%clk 0:03:00.5]} 4.
Ba4 {[%clk 0:02:59.3]} 4... Nf6 {[%clk 0:03:00.5]} 5. O-O {[%clk 0:02:58.3]}
5... Be7 {[%clk 0:03:00]} 6. d3 {[%clk 0:02:58.2]} 6... b5 {[%clk 0:02:58.5]} 7.
Bb3 {[%clk 0:02:58]} 7... O-O {[%clk 0:02:58.6]} 8. a4 {[%clk 0:02:58.4]} 8...
Rb8 {[%clk 0:02:54.2]} 9. Nc3 {[%clk 0:02:56.4]} 9... b4 {[%clk 0:02:46.4]} 10.
Ne2 {[%clk 0:02:55.8]} 10... d5 {[%clk 0:02:44.8]} 11. exd5 {[%clk 0:02:53.6]}
11... Nxd5 {[%clk 0:02:45.7]} 12. a5 {[%clk 0:02:54.5]} 12... Bg4 {[%clk
0:02:43.4]} 13. Be3 {[%clk 0:02:44.9]} 13... Bxf3 {[%clk 0:02:38.1]} 14. gxf3
{[%clk 0:02:45.8]} 14... Kh8 {[%clk 0:02:02.2]} 15. Kh1 {[%clk 0:02:45.3]} 15...
f5 {[%clk 0:02:01.9]} 16. Bc4 {[%clk 0:02:29.8]} 16... f4 {[%clk 0:01:45.1]} 17.
Bd2 {[%clk 0:02:25.4]} 17... Ra8 {[%clk 0:01:41.2]} 18. c3 {[%clk 0:02:21.1]}
18... bxc3 {[%clk 0:01:38.2]} 19. bxc3 {[%clk 0:02:19]} 19... Qd7 {[%clk
0:01:29.7]} 20. Rg1 {[%clk 0:02:10.9]} 20... Bc5 {[%clk 0:01:27.8]} 21. Rg2
{[%clk 0:02:07.5]} 21... Nf6 {[%clk 0:01:26.3]} 22. Qa4 {[%clk 0:01:53.8]} 22...
e4 {[%clk 0:01:10.5]} 23. dxe4 {[%clk 0:01:27.8]} 23... Nxe4 {[%clk 0:01:01.7]}
24. Be1 {[%clk 0:01:07.2]} 24... Nd6 {[%clk 0:00:59]} 25. Bd5 {[%clk 0:01:06.3]}
25... Nb5 {[%clk 0:00:53]} 26. c4 {[%clk 0:01:01.4]} 26... Rab8 {[%clk
0:00:51.2]} 27. cxb5 {[%clk 0:00:59.8]} 27... Qxd5 {[%clk 0:00:40.9]} 28. bxc6
{[%clk 0:00:59.3]} 28... Qxf3 {[%clk 0:00:40.6]} 29. Qc4 {[%clk 0:00:52.4]}
29... Qxc6 {[%clk 0:00:32.9]} 30. Nd4 {[%clk 0:00:52.3]} 30... Qd6 {[%clk
0:00:21.8]} 31. Nf3 {[%clk 0:00:51.4]} 31... Qf6 {[%clk 0:00:18.7]} 32. Bc3
{[%clk 0:00:50.6]} 32... Qc6 {[%clk 0:00:17.7]} 33. Bxg7# {[%clk 0:00:49.2]} 1-0

[Event "*** SCC Grand Prix: Titled Tuesday Blitz"]
[Site "Chess.com"]
[Date "2020.06.23"]
[Round "1"]
[White "Kislov_Oleg"]
[Black "KoustavChatterjee1"]
[Result "0-1"]
[WhiteElo "2389"]
[BlackElo "2754"]
[TimeControl "180+1"]
[EndTime "10:06:38 PDT"]
[Termination "KoustavChatterjee1 won by resignation"]

1. e4 {[%clk 0:03:00.2]} 1... e5 {[%clk 0:02:59.5]} 2. Nf3 {[%clk 0:02:59.8]}
2... Nc6 {[%clk 0:02:59.9]} 3. d4 {[%clk 0:02:59.1]} 3... exd4 {[%clk
0:02:59.7]} 4. Nxd4 {[%clk 0:03:00]} 4... Nf6 {[%clk 0:03:00.1]} 5. Nc3 {[%clk
0:02:59.4]} 5... Bb4 {[%clk 0:02:59.5]} 6. Nxc6 {[%clk 0:02:58.8]} 6... bxc6
{[%clk 0:03:00.4]} 7. Bd3 {[%clk 0:02:58.3]} 7... O-O {[%clk 0:02:59.3]} 8. O-O
{[%clk 0:02:56.1]} 8... d5 {[%clk 0:02:59.3]} 9. exd5 {[%clk 0:02:53.3]} 9...
cxd5 {[%clk 0:03:00.2]} 10. Bg5 {[%clk 0:02:53.9]} 10... c6 {[%clk 0:02:56.6]}
11. Qf3 {[%clk 0:02:52.7]} 11... h6 {[%clk 0:02:56.4]} 12. Bxf6 {[%clk
0:02:50.5]} 12... Qxf6 {[%clk 0:02:57.3]} 13. Qxf6 {[%clk 0:02:50.2]} 13... gxf6
{[%clk 0:02:58.2]} 14. Ne2 {[%clk 0:02:29.6]} 14... Bd7 {[%clk 0:02:49.5]} 15.
Nf4 {[%clk 0:02:20.1]} 15... Bd6 {[%clk 0:02:36]} 16. Nh5 {[%clk 0:02:03.9]}
16... Be5 {[%clk 0:02:35.8]} 17. Rab1 {[%clk 0:01:56.6]} 17... Rab8 {[%clk
0:02:25.2]} 18. b3 {[%clk 0:01:54.5]} 18... Bg4 {[%clk 0:02:07.9]} 19. Ng3
{[%clk 0:01:52.7]} 19... Rfe8 {[%clk 0:02:00.9]} 20. Rfe1 {[%clk 0:01:42.8]}
20... Bc3 {[%clk 0:01:49.6]} 21. Rxe8+ {[%clk 0:01:41]} 21... Rxe8 {[%clk
0:01:50.5]} 22. Kf1 {[%clk 0:01:33.4]} 22... Re5 {[%clk 0:01:35.8]} 23. f4
{[%clk 0:01:18.3]} 23... Re3 {[%clk 0:01:31.2]} 24. Nf5 {[%clk 0:01:03.9]} 24...
Rxd3 {[%clk 0:01:05.5]} 25. cxd3 {[%clk 0:01:01.2]} 25... Bxf5 {[%clk
0:01:05.2]} 26. Rc1 {[%clk 0:00:59.7]} 26... Bxd3+ {[%clk 0:01:04.2]} 27. Kf2
{[%clk 0:00:56.3]} 27... d4 {[%clk 0:01:04]} 28. Kf3 {[%clk 0:00:43.5]} 28... f5
{[%clk 0:01:03.8]} 29. g3 {[%clk 0:00:36.9]} 29... Kg7 {[%clk 0:01:02.7]} 30.
Rd1 {[%clk 0:00:26.5]} 30... Be4+ {[%clk 0:01:02.1]} 31. Ke2 {[%clk 0:00:26.2]}
31... Kf6 {[%clk 0:01:01.6]} 32. Rc1 {[%clk 0:00:24.3]} 32... Ke6 {[%clk
0:01:00.3]} 33. Rd1 {[%clk 0:00:24.2]} 33... Kd5 {[%clk 0:01:00.1]} 34. Rc1
{[%clk 0:00:24.4]} 34... Kc5 {[%clk 0:00:59.9]} 35. a3 {[%clk 0:00:18.3]} 35...
a5 {[%clk 0:00:59.8]} 36. Rg1 {[%clk 0:00:13.1]} 36... d3+ {[%clk 0:00:55.9]}
0-1

[Event "*** SCC Grand Prix: Titled Tuesday Blitz"]
[Site "Chess.com"]
[Date "2020.06.23"]
[Round "1"]
[White "murtas73"]
[Black "peixe64"]
[Result "0-1"]
[WhiteElo "2635"]
[BlackElo "2354"]
[TimeControl "180+1"]
[EndTime "10:06:42 PDT"]
[Termination "peixe64 won on time"]

1. d4 {[%clk 0:02:57.4]} 1... Nf6 {[%clk 0:03:00]} 2. c4 {[%clk 0:02:57.8]} 2...
g6 {[%clk 0:02:58.8]} 3. Nc3 {[%clk 0:02:56.8]} 3... d5 {[%clk 0:02:59]} 4. cxd5
{[%clk 0:02:55.7]} 4... Nxd5 {[%clk 0:02:59.9]} 5. Bd2 {[%clk 0:02:56.1]} 5...
Bg7 {[%clk 0:02:58.4]} 6. e4 {[%clk 0:02:55.2]} 6... Nb6 {[%clk 0:02:58.7]} 7.
Be3 {[%clk 0:02:50.8]} 7... O-O {[%clk 0:02:57.4]} 8. Bb5 {[%clk 0:02:48.9]}
8... a6 {[%clk 0:02:51]} 9. Be2 {[%clk 0:02:46.6]} 9... Nc6 {[%clk 0:02:49.6]}
10. d5 {[%clk 0:02:44.2]} 10... Ne5 {[%clk 0:02:33.9]} 11. Bd4 {[%clk
0:02:42.8]} 11... e6 {[%clk 0:01:55]} 12. f4 {[%clk 0:02:38.2]} 12... Ned7
{[%clk 0:01:51.2]} 13. Bxg7 {[%clk 0:02:34.6]} 13... Kxg7 {[%clk 0:01:51.3]} 14.
Qd4+ {[%clk 0:02:32.9]} 14... Kg8 {[%clk 0:01:40.1]} 15. dxe6 {[%clk 0:02:28.5]}
15... fxe6 {[%clk 0:01:38.9]} 16. e5 {[%clk 0:02:19.7]} 16... Qe7 {[%clk
0:01:32.6]} 17. Nf3 {[%clk 0:02:16.1]} 17... Re8 {[%clk 0:01:18.9]} 18. O-O
{[%clk 0:02:12.4]} 18... Qc5 {[%clk 0:01:14.4]} 19. Ne4 {[%clk 0:02:01.6]} 19...
Qxd4+ {[%clk 0:01:12.4]} 20. Nxd4 {[%clk 0:02:02.5]} 20... Nd5 {[%clk
0:01:10.9]} 21. Rac1 {[%clk 0:01:50.3]} 21... N7b6 {[%clk 0:01:08.2]} 22. Nc5
{[%clk 0:01:39.8]} 22... Rb8 {[%clk 0:01:00.9]} 23. Rf3 {[%clk 0:01:10.7]} 23...
Bd7 {[%clk 0:00:46.3]} 24. a4 {[%clk 0:01:09]} 24... Bxa4 {[%clk 0:00:36.3]} 0-1

[Event "*** SCC Grand Prix: Titled Tuesday Blitz"]
[Site "Chess.com"]
[Date "2020.06.23"]
[Round "1"]
[White "VMikhalevski"]
[Black "kingofthenil"]
[Result "1-0"]
[WhiteElo "2774"]
[BlackElo "2393"]
[TimeControl "180+1"]
[EndTime "10:06:46 PDT"]
[Termination "VMikhalevski won on time"]

1. d4 {[%clk 0:03:00.8]} 1... Nf6 {[%clk 0:02:59.6]} 2. Nf3 {[%clk 0:03:00.8]}
2... c5 {[%clk 0:02:59.4]} 3. d5 {[%clk 0:03:00.3]} 3... e6 {[%clk 0:03:00.3]}
4. c4 {[%clk 0:02:59.7]} 4... exd5 {[%clk 0:02:58.6]} 5. cxd5 {[%clk 0:02:59.6]}
5... g6 {[%clk 0:02:59.5]} 6. Nc3 {[%clk 0:02:58.9]} 6... Bg7 {[%clk 0:03:00.1]}
7. g3 {[%clk 0:02:58.8]} 7... O-O {[%clk 0:03:00.5]} 8. Bg2 {[%clk 0:02:58.8]}
8... d6 {[%clk 0:03:01.4]} 9. O-O {[%clk 0:02:58.7]} 9... Re8 {[%clk 0:03:02.3]}
10. Bf4 {[%clk 0:02:55.5]} 10... h6 {[%clk 0:03:01.9]} 11. Nb5 {[%clk
0:02:34.7]} 11... Bf8 {[%clk 0:01:07.1]} 12. a4 {[%clk 0:02:28.6]} 12... g5
{[%clk 0:00:58.4]} 13. Bc1 {[%clk 0:02:25.5]} 13... a6 {[%clk 0:00:44.6]} 14.
Nc3 {[%clk 0:02:23.4]} 14... Bf5 {[%clk 0:00:45.4]} 15. Nd2 {[%clk 0:02:22.5]}
15... Nbd7 {[%clk 0:00:41.7]} 16. Nc4 {[%clk 0:02:17.5]} 16... Nb6 {[%clk
0:00:36.5]} 17. Ne3 {[%clk 0:02:16.7]} 17... Bg6 {[%clk 0:00:35.8]} 18. a5
{[%clk 0:02:15.9]} 18... Nbd7 {[%clk 0:00:33.3]} 19. Nc4 {[%clk 0:02:15]} 19...
b5 {[%clk 0:00:28]} 20. axb6 {[%clk 0:02:14.2]} 20... Nxb6 {[%clk 0:00:28.9]}
21. Na5 {[%clk 0:02:12.4]} 21... Qd7 {[%clk 0:00:16.2]} 22. Qb3 {[%clk
0:02:05.2]} 22... Nc8 {[%clk 0:00:01.5]} 23. Nc6 {[%clk 0:02:01.1]} 23... Ne4
{[%clk 0:00:01.1]} 24. Nxe4 {[%clk 0:01:57.8]} 24... Bxe4 {[%clk 0:00:02]} 25.
Bxe4 {[%clk 0:01:57.9]} 25... Rxe4 {[%clk 0:00:02.9]} 26. Qd3 {[%clk 0:01:57.8]}
26... Re8 {[%clk 0:00:01.8]} 27. Rxa6 {[%clk 0:01:53.2]} 27... Rxa6 {[%clk
0:00:01.2]} 28. Qxa6 {[%clk 0:01:52.8]} 28... Ne7 {[%clk 0:00:01.1]} 29. Nxe7+
{[%clk 0:01:25.1]} 29... Rxe7 {[%clk 0:00:02]} 30. Qd3 {[%clk 0:01:20.2]} 30...
Bg7 {[%clk 0:00:01.4]} 31. b3 {[%clk 0:01:18.9]} 31... f5 {[%clk 0:00:01.4]} 32.
Bd2 {[%clk 0:01:17.5]} 32... Re4 {[%clk 0:00:01.4]} 33. e3 {[%clk 0:01:15]}
33... Qe7 {[%clk 0:00:01.1]} 34. Re1 {[%clk 0:01:05.2]} 34... Qf7 {[%clk
0:00:01.3]} 35. Rd1 {[%clk 0:00:55.5]} 35... g4 {[%clk 0:00:01.2]} 36. Be1
{[%clk 0:00:48.7]} 36... h5 {[%clk 0:00:01.5]} 37. Qa6 {[%clk 0:00:46.9]} 1-0

[Event "*** SCC Grand Prix: Titled Tuesday Blitz"]
[Site "Chess.com"]
[Date "2020.06.23"]
[Round "1"]
[White "Unknown_IM"]
[Black "Antipov_Mikhail_Al"]
[Result "0-1"]
[WhiteElo "2409"]
[BlackElo "2805"]
[TimeControl "180+1"]
[EndTime "10:06:47 PDT"]
[Termination "Antipov_Mikhail_Al won by checkmate"]

1. d4 {[%clk 0:02:57.4]} 1... Nf6 {[%clk 0:02:59.6]} 2. c4 {[%clk 0:02:57]} 2...
g6 {[%clk 0:02:58.2]} 3. Nc3 {[%clk 0:02:57]} 3... d5 {[%clk 0:02:55.8]} 4. Bf4
{[%clk 0:02:55.4]} 4... Bg7 {[%clk 0:02:54.8]} 5. Nf3 {[%clk 0:02:53.8]} 5...
O-O {[%clk 0:02:54]} 6. c5 {[%clk 0:02:52.8]} 6... b6 {[%clk 0:02:48.6]} 7. b4
{[%clk 0:02:51.5]} 7... Nh5 {[%clk 0:02:39]} 8. e3 {[%clk 0:02:47.7]} 8... a5
{[%clk 0:02:30.4]} 9. a3 {[%clk 0:02:46.6]} 9... Nxf4 {[%clk 0:02:27.5]} 10.
exf4 {[%clk 0:02:45.9]} 10... axb4 {[%clk 0:02:28.1]} 11. axb4 {[%clk
0:02:45.5]} 11... Rxa1 {[%clk 0:02:29]} 12. Qxa1 {[%clk 0:02:45.7]} 12... Nc6
{[%clk 0:02:29.9]} 13. Qb2 {[%clk 0:02:42.5]} 13... Nxd4 {[%clk 0:02:29.4]} 14.
Nxd4 {[%clk 0:02:42]} 14... Bxd4 {[%clk 0:02:30.3]} 15. cxb6 {[%clk 0:02:32.1]}
15... cxb6 {[%clk 0:02:29]} 16. Bd3 {[%clk 0:02:30.1]} 16... Qc7 {[%clk
0:02:28.6]} 17. Nxd5 {[%clk 0:02:29.9]} 17... Qxf4 {[%clk 0:02:09.2]} 18. Nxf4
{[%clk 0:01:30.4]} 18... Bxb2 {[%clk 0:02:09.1]} 19. Nd5 {[%clk 0:01:30.8]}
19... Bb7 {[%clk 0:02:08.1]} 20. Nxe7+ {[%clk 0:01:24.5]} 20... Kg7 {[%clk
0:02:08]} 21. O-O {[%clk 0:01:24.7]} 21... Re8 {[%clk 0:02:06.5]} 22. Re1 {[%clk
0:01:23.9]} 22... Kf8 {[%clk 0:02:06.1]} 23. Rb1 {[%clk 0:01:17.4]} 23... Bf6
{[%clk 0:02:02.9]} 24. Kf1 {[%clk 0:01:11.6]} 24... Rxe7 {[%clk 0:02:02.4]} 25.
Rc1 {[%clk 0:01:11.6]} 25... Kg7 {[%clk 0:01:59.4]} 26. f3 {[%clk 0:01:10.3]}
26... Rd7 {[%clk 0:01:57.7]} 27. Ke2 {[%clk 0:01:09.5]} 27... Be7 {[%clk
0:01:55.4]} 28. b5 {[%clk 0:01:04.8]} 28... Bc5 {[%clk 0:01:53.8]} 29. Rc4
{[%clk 0:01:04]} 29... Bd5 {[%clk 0:01:53.4]} 30. Rc3 {[%clk 0:01:00.6]} 30...
Re7+ {[%clk 0:01:53.4]} 31. Kd1 {[%clk 0:00:59.7]} 31... Bb4 {[%clk 0:01:51.4]}
32. Rc8 {[%clk 0:00:55.9]} 32... Re1+ {[%clk 0:01:41.6]} 33. Kc2 {[%clk
0:00:55.3]} 33... Rg1 {[%clk 0:01:42.5]} 34. g3 {[%clk 0:00:49.8]} 34... Rg2+
{[%clk 0:01:42.4]} 35. Kb1 {[%clk 0:00:49.2]} 35... Rxh2 {[%clk 0:01:40.1]} 36.
Rb8 {[%clk 0:00:47.4]} 36... Ba2+ {[%clk 0:01:38.9]} 37. Kc1 {[%clk 0:00:45.2]}
37... Ba3+ {[%clk 0:01:38.8]} 38. Kd1 {[%clk 0:00:45]} 38... Bb3+ {[%clk
0:01:37.4]} 39. Ke1 {[%clk 0:00:44.6]} 39... Bb4+ {[%clk 0:01:37.8]} 40. Kf1
{[%clk 0:00:44.4]} 40... Rd2 {[%clk 0:01:38.2]} 41. Be2 {[%clk 0:00:44]} 41...
Bc5 {[%clk 0:01:36.5]} 42. Rc8 {[%clk 0:00:42.9]} 42... Be6 {[%clk 0:01:36.2]}
43. Rc6 {[%clk 0:00:42.8]} 43... Rb2 {[%clk 0:01:35.3]} 44. Rc7 {[%clk
0:00:40.4]} 44... h5 {[%clk 0:01:34.5]} 45. Ke1 {[%clk 0:00:39.8]} 45... g5
{[%clk 0:01:34.1]} 46. Rc6 {[%clk 0:00:39.7]} 46... h4 {[%clk 0:01:34]} 47. gxh4
{[%clk 0:00:39]} 47... gxh4 {[%clk 0:01:34.9]} 48. f4 {[%clk 0:00:38.2]} 48...
h3 {[%clk 0:01:34.3]} 49. Bf3 {[%clk 0:00:38.1]} 49... h2 {[%clk 0:01:30.2]} 50.
Be4 {[%clk 0:00:29.7]} 50... Bg4 {[%clk 0:01:27.2]} 51. Bd5 {[%clk 0:00:21]}
51... Bb4+ {[%clk 0:01:27.1]} 52. Kf1 {[%clk 0:00:19.7]} 52... Bh3+ {[%clk
0:01:27.4]} 53. Bg2 {[%clk 0:00:16.5]} 53... h1=Q# {[%clk 0:01:28.3]} 0-1

[Event "*** SCC Grand Prix: Titled Tuesday Blitz"]
[Site "Chess.com"]
[Date "2020.06.23"]
[Round "1"]
[White "MYMChessAcademy"]
[Black "Korchmar_Vasiliy"]
[Result "0-1"]
[WhiteElo "2263"]
[BlackElo "2603"]
[TimeControl "180+1"]
[EndTime "10:06:48 PDT"]
[Termination "Korchmar_Vasiliy won by checkmate"]

1. e4 {[%clk 0:02:56.8]} 1... c5 {[%clk 0:02:59.3]} 2. Nf3 {[%clk 0:02:56]} 2...
d6 {[%clk 0:02:59.8]} 3. d4 {[%clk 0:02:55.5]} 3... cxd4 {[%clk 0:03:00.7]} 4.
Nxd4 {[%clk 0:02:55.6]} 4... Nf6 {[%clk 0:03:01.4]} 5. Nc3 {[%clk 0:02:55.1]}
5... Nc6 {[%clk 0:03:02.1]} 6. Be2 {[%clk 0:02:54.1]} 6... e5 {[%clk 0:03:02.1]}
7. Nb3 {[%clk 0:02:53]} 7... Be7 {[%clk 0:03:00.8]} 8. Be3 {[%clk 0:02:50.1]}
8... O-O {[%clk 0:03:00.8]} 9. g4 {[%clk 0:02:49.6]} 9... a5 {[%clk 0:02:44.7]}
10. a4 {[%clk 0:02:39.4]} 10... Nb4 {[%clk 0:02:39.1]} 11. g5 {[%clk 0:02:31.2]}
11... Ne8 {[%clk 0:02:39]} 12. h4 {[%clk 0:02:29.6]} 12... Be6 {[%clk
0:02:33.4]} 13. Nd5 {[%clk 0:02:16.2]} 13... Nxd5 {[%clk 0:02:24.1]} 14. exd5
{[%clk 0:02:17.1]} 14... Bf5 {[%clk 0:02:24.6]} 15. Qd2 {[%clk 0:02:11.4]} 15...
f6 {[%clk 0:02:08]} 16. Rg1 {[%clk 0:01:40.9]} 16... fxg5 {[%clk 0:02:04.2]} 17.
Bxg5 {[%clk 0:01:34.2]} 17... Bxg5 {[%clk 0:02:03]} 18. Rxg5 {[%clk 0:01:30.5]}
18... Rc8 {[%clk 0:01:41.2]} 19. Bd3 {[%clk 0:01:27.7]} 19... Bxd3 {[%clk
0:01:34.6]} 20. Qxd3 {[%clk 0:01:28.6]} 20... Qb6 {[%clk 0:01:26.2]} 21. O-O-O
{[%clk 0:01:14.6]} 21... Rxf2 {[%clk 0:01:21.3]} 22. Rd2 {[%clk 0:01:10.2]}
22... Nf6 {[%clk 0:01:08.3]} 23. Qg3 {[%clk 0:00:42]} 23... Ne4 {[%clk
0:00:32.8]} 24. Rxg7+ {[%clk 0:00:38.4]} 24... Kh8 {[%clk 0:00:33.4]} 25. Qg4
{[%clk 0:00:29.1]} 25... Rf1+ {[%clk 0:00:23.2]} 26. Rd1 {[%clk 0:00:19.3]}
26... Rxd1+ {[%clk 0:00:23.4]} 27. Qxd1 {[%clk 0:00:19.8]} 27... Qxb3 {[%clk
0:00:16]} 28. Rg2 {[%clk 0:00:14.9]} 28... Qxa4 {[%clk 0:00:11.4]} 29. Qg4
{[%clk 0:00:13.9]} 29... Qa1# {[%clk 0:00:10.2]} 0-1

[Event "*** SCC Grand Prix: Titled Tuesday Blitz"]
[Site "Chess.com"]
[Date "2020.06.23"]
[Round "1"]
[White "chipmunknau"]
[Black "Raffaello123"]
[Result "0-1"]
[WhiteElo "2594"]
[BlackElo "2416"]
[TimeControl "180+1"]
[EndTime "10:06:49 PDT"]
[Termination "Raffaello123 won by checkmate"]

1. Nf3 {[%clk 0:01:50.7]} 1... Nf6 {[%clk 0:02:57.6]} 2. g3 {[%clk 0:01:49]}
2... e6 {[%clk 0:02:53.6]} 3. Bg2 {[%clk 0:01:48.6]} 3... d5 {[%clk 0:02:47.8]}
4. O-O {[%clk 0:01:48.4]} 4... Be7 {[%clk 0:02:48.5]} 5. d4 {[%clk 0:01:48.3]}
5... O-O {[%clk 0:02:47.5]} 6. c4 {[%clk 0:01:49.2]} 6... dxc4 {[%clk 0:02:47]}
7. Qc2 {[%clk 0:01:46.1]} 7... a6 {[%clk 0:02:46.8]} 8. a4 {[%clk 0:01:41]} 8...
Bd7 {[%clk 0:02:46.6]} 9. Qxc4 {[%clk 0:01:36.2]} 9... Bc6 {[%clk 0:02:42.3]}
10. Nc3 {[%clk 0:01:32.5]} 10... b5 {[%clk 0:02:41.6]} 11. Qd3 {[%clk
0:01:31.1]} 11... b4 {[%clk 0:02:41.7]} 12. Nb1 {[%clk 0:01:27.8]} 12... Be4
{[%clk 0:02:40.5]} 13. Qd1 {[%clk 0:01:26.9]} 13... Nc6 {[%clk 0:02:37.1]} 14.
Nbd2 {[%clk 0:01:24.5]} 14... Bd5 {[%clk 0:02:35.3]} 15. Qc2 {[%clk 0:01:17.4]}
15... Na5 {[%clk 0:02:24.5]} 16. e4 {[%clk 0:01:14.6]} 16... Bb7 {[%clk
0:02:20.2]} 17. e5 {[%clk 0:01:02.8]} 17... Nd5 {[%clk 0:02:17.2]} 18. Ne4
{[%clk 0:01:01.9]} 18... Rc8 {[%clk 0:01:52.5]} 19. Rd1 {[%clk 0:00:57.7]} 19...
b3 {[%clk 0:01:47.1]} 20. Qe2 {[%clk 0:00:55.7]} 20... Bb4 {[%clk 0:01:42.6]}
21. Bg5 {[%clk 0:00:52.1]} 21... Qe8 {[%clk 0:01:39.8]} 22. Rdc1 {[%clk
0:00:46.4]} 22... h6 {[%clk 0:01:36.9]} 23. Bd2 {[%clk 0:00:43.8]} 23... Qe7
{[%clk 0:01:19.2]} 24. Nc5 {[%clk 0:00:42.1]} 24... Bxc5 {[%clk 0:01:18.9]} 25.
Rxc5 {[%clk 0:00:42]} 25... Nc6 {[%clk 0:01:18]} 26. a5 {[%clk 0:00:39.8]} 26...
Nxd4 {[%clk 0:01:16.5]} 27. Qc4 {[%clk 0:00:29.4]} 27... Nxf3+ {[%clk
0:01:09.3]} 28. Bxf3 {[%clk 0:00:30.3]} 28... Ne3 {[%clk 0:01:02.7]} 29. Bxe3
{[%clk 0:00:24.1]} 29... Bxf3 {[%clk 0:01:02.5]} 30. Qxb3 {[%clk 0:00:21.6]}
30... Rb8 {[%clk 0:00:59.4]} 31. Qc3 {[%clk 0:00:20]} 31... c6 {[%clk
0:00:55.9]} 32. Rc1 {[%clk 0:00:14.4]} 32... Rfd8 {[%clk 0:00:54]} 33. Bxh6
{[%clk 0:00:12.9]} 33... Bd5 {[%clk 0:00:46.1]} 34. Be3 {[%clk 0:00:10.8]} 34...
Rb3 {[%clk 0:00:46.2]} 35. Qc2 {[%clk 0:00:09.5]} 35... Qb7 {[%clk 0:00:45.2]}
36. Bd4 {[%clk 0:00:07.9]} 36... Qb4 {[%clk 0:00:43.8]} 37. Rd1 {[%clk
0:00:05.8]} 37... Bf3 {[%clk 0:00:39.3]} 38. Rd2 {[%clk 0:00:04.5]} 38... Rxd4
{[%clk 0:00:37.5]} 39. Rxd4 {[%clk 0:00:03.8]} 39... Qe1# {[%clk 0:00:38.4]} 0-1